fUSD/lending_fUSD_20260315
["ID","MTS","AMOUNT","RATE_DAILY","PERIOD"]
[408400550,1773568243589,-504.34667624,0.00014795,2]
[408400551,1773568243599,-1000.0,0.00014795,2]
[408400552,1773568243608,-244.75125332,0.00014795,2]
[408400553,1773568243617,-974.77138768,0.00014795,2]
[408400554,1773568243626,-504.89540778,0.00014795,2]
[408400555,1773568243635,-1500.0,0.00014795,2]
[408400556,1773568243645,-1000.0,0.00014795,2]
[408400557,1773568243655,-982.7910397,0.00014795,2]
[408400558,1773568243664,-405.85897198,0.00014795,2]
[408400559,1773568243674,-171.96548914,0.000149,2]
[408400560,1773568243684,-171.96548913,0.000149,2]
[408400561,1773568243694,-587.0,0.00014938,2]
[408400562,1773568243704,-587.0,0.00014938,2]
[408400563,1773568243713,-2351.0,0.00015011,2]
[408400564,1773568243724,-587.0,0.00015055,2]
[408400565,1773568243734,-2753.24,0.00015068,2]
[408400566,1773568243743,-177.14,0.00015086,2]
[408400567,1773568243752,-795.71924551,0.00015212,2]
[408400568,1773568243761,-19950.06183316,0.00015269,2]
[408400569,1773568243771,-2000.0,0.00015342,2]
[408400570,1773568243780,-177.14,0.00015741,2]
[408400571,1773568243789,-2753.24,0.00015753,2]
[408400572,1773568243798,-17191.1538959,0.00015801,2]
[408400573,1773568243808,-1000.0,0.0001589,2]
[408400574,1773568243818,-1559.44679366,0.00015895,2]
[408400575,1773568243828,-5000.0,0.0001596,2]
[408400576,1773568243836,-1059.60415892,0.00015974,2]
[408400577,1773568243846,-1080.87008276,0.00015974,2]
[408400578,1773568243855,-1046.86301046,0.00015974,2]
[408400579,1773568243865,-1339.57233499,0.00015974,2]
[408400580,1773568243875,-736.0,0.00016061,2]
[408400581,1773568243887,-157.4552258,0.00016079,2]
[408400582,1773568243898,-250.0,0.00016122,2]
[408400583,1773568243909,-160.0,0.00016236,2]
[408400584,1773568243922,-469.87233333,0.00016236,2]
[408400585,1773568243931,-823.0,0.00016392,2]
[408400586,1773568243941,-177.14,0.00016397,2]
[408400587,1773568244098,-150.0,0.000164,2]
[408400588,1773568244108,-213.0,0.000164,2]
[408400589,1773568244117,-302.46,0.000164,2]
[408400590,1773568244126,-353.5768258,0.000164,2]
[408400591,1773568244135,-150.0,0.00016438,2]
[408400592,1773568244145,-2753.24,0.00016438,2]
[408400593,1773568244154,-150.0,0.00016493,2]
[408400594,1773568244163,-3292.0,0.00016512,2]
[408400595,1773568244173,-823.0,0.00016518,2]
[408400596,1773568244183,-150.0,0.00016548,2]
[408400597,1773568244194,-153.80287197,0.00016602,2]
[408400598,1773568244203,-19950.06183316,0.00016645,2]
[408400599,1773568244213,-166.66,0.00016712,2]
[408400600,1773568244222,-518.0,0.00017,2]
[408400601,1773568244231,-177.14,0.00017053,2]
[408400602,1773568244240,-318.66047664,0.00017248,2]
[408400603,1773568244249,-308.15210792,0.00017341,2]
[408400604,1773568244258,-17191.1538959,0.00017444,2]
[408400605,1773568244267,-1252.0,0.00017462,2]
[408400606,1773568244276,-535.39,0.00017648,2]
[408400607,1773568244285,-956.0,0.00017662,2]
[408400608,1773568244295,-177.14,0.00017709,2]
[408400609,1773568244305,-956.0,0.00017788,2]
[408400610,1773568244314,-150.0,0.00017808,2]
[408400611,1773568244324,-784.55377187,0.00017808,2]
[408400612,1773568244333,-439.92909,0.00017837,7]
[408400613,1773568244342,-150.0,0.00017863,2]
[408400614,1773568244351,-412.8427638,0.000179,2]
[408400615,1773568244361,-412.8427638,0.000179,2]
[408400616,1773568244370,-412.8427638,0.000179,2]
[408400617,1773568244379,-412.8427638,0.000179,2]
[408400618,1773568244388,-158.1686959,0.00017918,2]
[408400619,1773568244397,-344.59,0.00017922,2]
[408400620,1773568244406,-157.000324,0.00017976,7]
[408400621,1773568244416,-1026.50121,0.00017978,7]
[408400622,1773568244425,-1152.0,0.00017987,2]
[408400623,1773568244434,-19950.06183316,0.00018021,2]
[408400624,1773568244443,-367.509038,0.00018076,7]
[408400625,1773568244454,-1152.0,0.00018124,2]
[408400626,1773568244466,-956.0,0.00018141,2]
[408400627,1773568244476,-956.0,0.00018158,2]
[408400628,1773568244485,-4609.0,0.00018163,2]
[408400629,1773568244495,-956.0,0.00018172,2]
[408400630,1773568244505,-956.0,0.00018283,2]
[408400631,1773568244515,-956.0,0.00018389,2]
[408400632,1773568244524,-956.0,0.0001839,2]
[408400633,1773568244538,-956.0,0.00018422,2]
[408400634,1773568244548,-956.0,0.00018453,2]
[408400635,1773568244558,-956.0,0.00018478,2]
[408400636,1773568244568,-956.0,0.00018511,2]
[408400637,1773568244577,-500.0,0.000186,2]
[408400638,1773568244587,-500.0,0.000186,2]
[408400639,1773568244597,-500.0,0.000186,2]
[408400640,1773568244607,-500.0,0.000186,2]
[408400641,1773568244616,-500.0,0.000186,2]
[408400642,1773568244626,-500.0,0.000186,2]
[408400643,1773568244635,-500.0,0.000186,2]
[408400644,1773568244644,-500.0,0.000186,2]
[408400645,1773568244653,-500.0,0.000186,2]
[408400646,1773568244663,-700.0,0.000186,2]
[408400647,1773568244672,-500.0,0.000186,2]
[408400648,1773568244682,-500.0,0.000186,2]
[408400649,1773568244692,-864.64014527,0.000186,2]
[408400650,1773568244701,-500.0,0.000186,2]
[408400651,1773568244711,-500.0,0.000186,2]
[408400652,1773568244721,-500.0,0.000186,2]
[408400653,1773568244731,-500.0,0.000186,2]
[408400654,1773568244740,-500.0,0.000186,2]
[408400655,1773568244750,-500.0,0.000186,2]
[408400656,1773568244760,-500.0,0.000186,2]
[408400657,1773568244770,-500.0,0.000186,2]
[408400658,1773568244780,-500.0,0.000186,2]
[408400659,1773568244790,-500.0,0.000186,2]
[408400660,1773568244799,-500.0,0.000186,2]
[408400661,1773568244808,-500.0,0.000186,2]
[408400662,1773568244817,-500.0,0.000186,2]
[408400663,1773568244828,-500.0,0.000186,2]
[408400664,1773568244838,-956.0,0.00018628,2]
[408400665,1773568244847,-956.0,0.00018638,2]
[408400666,1773568244856,-956.0,0.00018655,2]
[408400667,1773568244866,-956.0,0.00018702,2]
[408400668,1773568244875,-153.56106977,0.00018733,2]
[408400669,1773568244884,-956.0,0.00018805,2]
[408400670,1773568244894,-3341.06460039,0.00018812,4]
[408400671,1773568244903,-956.0,0.00018892,2]
[408400672,1773568244912,-956.0,0.00018956,2]
[408400673,1773568244922,-17191.1538959,0.00019086,2]
[408400674,1773568244932,-956.0,0.00019122,2]
[408400675,1773568244942,-2503.69656434,0.00019152,2]
[408400676,1773568244952,-956.0,0.00019158,2]
[408400677,1773568244961,-285.09733366,0.00019178,2]
[408400678,1773568244971,-150.0,0.00019178,2]
[408400679,1773568244983,-150.23101527,0.00019178,2]
[408400680,1773568244992,-956.0,0.00019251,2]
[408400681,1773568245001,-956.0,0.00019328,2]
[408400682,1773568245011,-956.0,0.00019372,2]
[408400683,1773568245020,-19950.06183316,0.00019396,2]
[408400684,1773568245030,-956.0,0.00019425,2]
[408400685,1773568245039,-166.66,0.00019658,2]
[408400686,1773568245049,-151.1911095,0.00019726,2]
[408400687,1773568245059,-1613.0,0.00019738,2]
[408400688,1773568245069,-195.11,0.00019865,2]
[408400689,1773568245079,-942.0,0.00019886,2]
[408400690,1773568245088,-896.01113346,0.000199,2]
[408400691,1773568245098,-6453.0,0.0001998,2]
[408400692,1773568245108,-172.6439,0.0002,2]
[408400693,1773568245118,-172.6439,0.0002,2]
[408400694,1773568245127,-172.6439,0.0002,2]
[408400695,1773568245136,-172.6439,0.0002,2]
[408400696,1773568245146,-172.6439,0.0002,2]
[408400697,1773568245155,-172.6439,0.0002,2]
[408400698,1773568245164,-435.0,0.0002,2]
[408400699,1773568245174,-568.5,0.0002,2]
[408400700,1773568245183,-341.0,0.0002,2]
[408400701,1773568245193,-1780.37,0.0002,7]
[408400702,1773568245202,-158.72,0.00020548,2]
[408400703,1773568245211,-17191.1538959,0.00020728,2]
[408400704,1773568245221,-19950.06183316,0.00020772,2]
[408400705,1773568245230,-300.0,0.0002095,2]
[408400706,1773568245240,-666.0,0.0002095,2]
[408400707,1773568245250,-9999.99,0.00020951,2]
[408400708,1773568245260,-1208.06,0.00020951,2]
[408400709,1773568245270,-4762.52,0.00020951,2]
[408400710,1773568245279,-29999.99,0.00020951,2]
[408400711,1773568245288,-518.0,0.000215,6]
[408400712,1773568245298,-2258.0,0.00021659,2]
[408400713,1773568245307,-192.102823,0.00021793,2]
[408400714,1773568245317,-2500.0,0.00021917,2]
[408400715,1773568245326,-2500.0,0.00021917,2]
[408400716,1773568245335,-2500.0,0.00021917,2]
[408400717,1773568245344,-2500.0,0.00021917,2]
[408400718,1773568245353,-2500.0,0.00021917,2]
[408400719,1773568245362,-2500.0,0.00021917,2]
[408400720,1773568245372,-1445.1719844,0.00021917,2]
[408400721,1773568245381,-5000.0,0.00021918,2]
[408400722,1773568245391,-318.66047664,0.00021978,2]
[408400723,1773568245400,-9035.0,0.00021978,2]
[408400724,1773568245410,-19950.06183316,0.00022148,2]
[408400725,1773568245419,-1043.0,0.0002217,2]
[408400726,1773568245428,-1343.0,0.0002217,2]
[408400727,1773568245438,-3436.312,0.0002217,2]
[408400728,1773568245447,-620.0,0.0002217,2]
[408400729,1773568245456,-1284.339,0.0002217,2]
[408400730,1773568245471,-425.351,0.0002217,2]
[408400731,1773568245480,-3755.0,0.0002217,2]
[408400732,1773568245490,-17191.1538959,0.0002237,2]
[408400733,1773568245500,-166.66,0.00022603,2]
[408400734,1773568245512,-150.0,0.00022629,7]
[408400735,1773568245521,-298.239919,0.00022631,7]
[408400736,1773568245531,-16723.0971258,0.00022806,2]
[408400737,1773568245542,-19950.06183316,0.00023524,2]
[408400738,1773568245552,-2126.0,0.00023767,2]
[408400739,1773568245561,-1026.50121,0.00023783,30]
[408400740,1773568245570,-471.87,0.00023823,2]
[408400742,1773568245579,-2395.169491,0.00023971,30]
[408400743,1773568245588,-17191.1538959,0.00024013,2]
[408400744,1773568245598,-204.171687,0.00024101,30]
[408400745,1773568245607,-12649.0,0.00024175,2]
[408400746,1773568245616,-471.87,0.0002422,2]
[408400747,1773568245625,-471.87,0.00024617,2]
[408400748,1773568245635,-172.87239417,0.0002463,2]
[408400749,1773568245645,-278.97,0.00024658,2]
[408400750,1773568245654,-150.0,0.00024658,2]
[408400751,1773568245664,-19950.06183316,0.000249,2]
[408400752,1773568245673,-500.0,0.00025,30]
[408400753,1773568245683,-500.0,0.00025,30]
[408400754,1773568245692,-500.0,0.00025,30]
[408400755,1773568245702,-500.0,0.00025,30]
[408400756,1773568245712,-500.0,0.00025,30]
[408400757,1773568245721,-500.0,0.00025,30]
[408400758,1773568245730,-500.0,0.00025,30]
[408400759,1773568245739,-500.0,0.00025,30]
[408400760,1773568245748,-500.0,0.00025,30]
[408400761,1773568245757,-500.0,0.00025,30]
[408400762,1773568245767,-500.0,0.00025,30]
[408400763,1773568245779,-500.0,0.00025,30]
[408400764,1773568245789,-500.0,0.00025,30]
[408400765,1773568245798,-500.0,0.00025,30]
[408400766,1773568245807,-500.0,0.00025,30]
[408400767,1773568245816,-500.0,0.00025,30]
[408400768,1773568245826,-500.0,0.00025,30]
[408400769,1773568245835,-150.0,0.00025,2]
[408400770,1773568245846,-469.87233333,0.00025,30]
[408400771,1773568245856,-500.0,0.00025,30]
[408400772,1773568245865,-500.0,0.00025,30]
[408400773,1773568245876,-501.40106128,0.00025,30]
[408400774,1773568245885,-500.0,0.00025,30]
[408400775,1773568245895,-500.0,0.00025,30]
[408400776,1773568245904,-500.0,0.00025,30]
[408400777,1773568245913,-500.0,0.00025,30]
[408400778,1773568245922,-500.0,0.00025,30]
[408400779,1773568245931,-500.0,0.00025,30]
[408400780,1773568245940,-500.0,0.00025,30]
[408400781,1773568245949,-500.0,0.00025,30]
[408400782,1773568245959,-500.0,0.00025,30]
[408400783,1773568245967,-500.0,0.00025,30]
[408400784,1773568245980,-500.0,0.00025,30]
[408400785,1773568245989,-909.53474774,0.00025,30]
[408400786,1773568245999,-500.0,0.00025,30]
[408400787,1773568246009,-500.0,0.00025,30]
[408400788,1773568246018,-500.0,0.00025,30]
[408400789,1773568246027,-500.0,0.00025,30]
[408400790,1773568246036,-500.0,0.00025,30]
[408400791,1773568246045,-500.0,0.00025,30]
[408400792,1773568246054,-244.26658027,0.00025014,2]
[408400793,1773568246064,-471.87413767,0.00025014,2]
[408400794,1773568246074,-1043.0,0.0002517,2]
[408400795,1773568246083,-1343.0,0.0002517,2]
[408400796,1773568246092,-1260.0,0.0002517,2]
[408400797,1773568246101,-414.0,0.0002517,2]
[408400798,1773568246110,-463.0,0.00025482,10]
[408400799,1773568246119,-15941.0,0.00025482,10]
[408400800,1773568246128,-166.66,0.00025548,2]
[408400801,1773568246137,-17191.1538959,0.00025655,2]
[408400802,1773568246146,-150.0,0.0002589,2]
[408400803,1773568246155,-469.87233333,0.00026,10]
[408400805,1773568246164,-518.0,0.00026,10]
[408400806,1773568246176,-3275.0,0.00026593,2]
[408400807,1773568246186,-318.66047664,0.00026709,2]
[408400808,1773568246195,-176.80719218,0.00026709,2]
[408400809,1773568246205,-932.60500862,0.00026709,2]
[408400811,1773568246214,-202.0987232,0.00026819,5]
[408400812,1773568246223,-150.0,0.00027185,2]
[408400813,1773568246233,-17191.1538959,0.00027297,2]
[408400814,1773568246242,-300.0,0.00027396,10]
[408400815,1773568246251,-685.06941575,0.00027396,2]
[408400816,1773568246260,-2033.342,0.00027397,2]
[408400817,1773568246269,-1000.0,0.00027397,20]
[408400818,1773568246279,-278.97,0.00027397,2]
[408400819,1773568246288,-32914.88,0.00027397,10]
[408400820,1773568246298,-195.10725217,0.00027583,2]
[408400821,1773568246309,-469.87233333,0.00028,10]
[408400822,1773568246319,-1043.0,0.0002817,2]
[408400823,1773568246328,-1260.0,0.0002817,2]
[408400824,1773568246337,-414.0,0.0002817,2]
[408400825,1773568246346,-214.0,0.00028368,14]
[408400826,1773568246355,-166.66,0.00028493,2]
[408400827,1773568246364,-497.25498154,0.00028767,2]
[408400828,1773568246377,-469.87233333,0.000288,10]
[408400829,1773568246387,-4170.0,0.000288,2]
[408400830,1773568246396,-2000.0,0.00029,2]
[408400831,1773568246405,-5533.0,0.000293,3]
[408400832,1773568246462,-150.0,0.00029685,2]
[408400833,1773568246472,-239.0,0.00029685,2]
[408400834,1773568246482,-152.0,0.00029783,3]
[408400835,1773568246492,-5533.0,0.000298,5]
[408400836,1773568246502,-175.0,0.00029866,7]
[408400837,1773568246512,-172.9990431,0.00030099,2]
[408400838,1773568246521,-370.20718385,0.00030104,2]
[408400839,1773568246530,-500.0,0.00030137,2]
[408400840,1773568246540,-200.0,0.00030137,2]
[408400841,1773568246549,-278.97,0.00030137,2]
[408400842,1773568246560,-151.0,0.00030321,7]
[408400843,1773568246570,-151.0,0.00030321,7]
[408400844,1773568246579,-151.0,0.00030321,7]
[408400845,1773568246588,-151.0,0.00030321,7]
[408400846,1773568246597,-2703.06548281,0.00030437,35]
[408400847,1773568246606,-518.0,0.000305,14]
[408400848,1773568246615,-4429.02090983,0.00031037,37]
[408400849,1773568246624,-152.0,0.00031074,4]
[408400850,1773568246633,-665.474,0.0003117,2]
[408400851,1773568246643,-318.66047664,0.00031439,2]
[408400852,1773568246652,-152.0,0.00032364,5]
[408400853,1773568246661,-2000.0,0.000327,2]
[408400854,1773568246670,-12691.02240842,0.00032876,120]
[408400855,1773568246679,-179.366668,0.00032876,7]
[408400856,1773568246689,-278.97,0.00032877,2]
[408400857,1773568246698,-347.11,0.00032877,2]
[408400858,1773568246707,-159.64861887,0.00032877,2]
[408400859,1773568246716,-1375.84,0.000329,30]
[408400860,1773568246725,-4417.06,0.000329,2]
[408400861,1773568246734,-1404.44,0.000329,14]
[408400862,1773568246743,-155.0,0.00033,30]
[408400863,1773568246752,-469.87233333,0.00033,120]
[408400864,1773568246761,-160.0,0.00033,120]
[408400865,1773568246770,-227.0,0.00033524,2]
[408400866,1773568246780,-805.51112024,0.00033591,120]
[408400867,1773568246790,-2218.95157167,0.00033591,120]
[408400868,1773568246799,-159.24072742,0.00033591,120]
[408400869,1773568246808,-152.0,0.00033655,6]
[408400870,1773568246818,-155.0,0.00034,30]
[408400871,1773568246826,-469.87233333,0.00034,120]
[408400872,1773568246836,-70000.0,0.00034,120]
[408400873,1773568246845,-5000.0,0.00034,30]
[408400874,1773568246855,-3781.835403,0.00034,30]
[408400875,1773568246864,-153.320739,0.00034,7]
[408400876,1773568246873,-227.13075,0.00034,7]
[408400877,1773568246882,-227.13075,0.00034,7]
[408400878,1773568246891,-172.0,0.00034035,2]
[408400879,1773568246899,-172.0,0.00034038,2]
[408400880,1773568246909,-230.44110645,0.0003407,2]
[408400881,1773568246918,-1026.69095058,0.00034299,20]
[408400882,1773568246927,-1965.40465599,0.00034299,20]
[408400883,1773568246936,-293.78067637,0.00034446,49]
[408400884,1773568246945,-1404.44,0.000346,14]
[408400885,1773568246964,-1500.0,0.00034795,2]
[408400886,1773568246974,-4417.06,0.000348,2]
[408400887,1773568246983,-152.0,0.00034945,7]
[408400888,1773568246992,-651.54591552,0.0003497,2]
[408400889,1773568247002,-212.797635,0.0003497,7]
[408400890,1773568247011,-151.0,0.0003497,7]
[408400891,1773568247020,-151.0,0.0003497,7]
[408400892,1773568247029,-518.0,0.00035,18]
[408400893,1773568247038,-200.42058914,0.00035,3]
[408400894,1773568247048,-155.0,0.00035,30]
[408400895,1773568247057,-172.87239416,0.00035589,120]
[408400896,1773568247066,-150.0,0.00035616,20]
[408400897,1773568247075,-151.0,0.00035616,7]
[408400898,1773568247084,-151.0,0.00035616,7]
[408400899,1773568247093,-151.0,0.00035616,7]
[408400900,1773568247102,-151.0,0.00035616,7]
[408400901,1773568247111,-151.0,0.00035616,7]
[408400902,1773568247120,-156.646115,0.00035616,7]
[408400903,1773568247129,-152.806641,0.00035616,7]
[408400904,1773568247138,-469.87233333,0.00035616,7]
[408400905,1773568247147,-557.7037666,0.00035616,7]
[408400906,1773568247156,-557.7037666,0.00035616,7]
[408400907,1773568247165,-557.7037666,0.00035616,7]
[408400908,1773568247174,-557.7037666,0.00035616,7]
[408400909,1773568247184,-557.7037666,0.00035616,7]
[408400910,1773568247193,-557.7037666,0.00035616,7]
[408400911,1773568247202,-557.7037666,0.00035616,7]
[408400912,1773568247211,-557.7037666,0.00035616,7]
[408400913,1773568247219,-557.7037666,0.00035616,7]
[408400914,1773568247228,-557.7037666,0.00035616,7]
[408400915,1773568247237,-557.7037666,0.00035616,7]
[408400916,1773568247246,-557.7037666,0.00035616,7]
[408400917,1773568247254,-557.7037666,0.00035616,7]
[408400918,1773568247263,-557.7037666,0.00035616,7]
[408400919,1773568247272,-557.7037666,0.00035616,7]
[408400920,1773568247281,-557.7037666,0.00035616,7]
[408400921,1773568247292,-557.7037666,0.00035616,7]
[408400922,1773568247301,-557.7037666,0.00035616,7]
[408400923,1773568247310,-557.7037666,0.00035616,7]
[408400924,1773568247320,-557.7037666,0.00035616,7]
[408400925,1773568247329,-557.7037666,0.00035616,7]
[408400926,1773568247339,-557.7037666,0.00035616,7]
[408400927,1773568247349,-557.7037666,0.00035616,7]
[408400928,1773568247358,-557.7037666,0.00035616,7]
[408400929,1773568247368,-500.0,0.00035616,7]
[408400930,1773568247377,-291.17076125,0.00035616,7]
[408400931,1773568247387,-641.35933157,0.00035616,7]
[408400932,1773568247397,-641.35933157,0.00035616,7]
[408400933,1773568247407,-641.35933157,0.00035616,7]
[408400934,1773568247417,-641.35933157,0.00035616,7]
[408400935,1773568247427,-641.35933157,0.00035616,7]
[408400936,1773568247436,-641.35933157,0.00035616,7]
[408400937,1773568247446,-278.97,0.00035616,2]
[408400938,1773568247455,-2747.85,0.000359,43]
[408400939,1773568247469,-177.698,0.000359,43]
[408400940,1773568247478,-155.0,0.00036,30]
[408400941,1773568247487,-1198.06,0.00036,120]
[408400942,1773568247499,-318.66047664,0.0003617,2]
[408400943,1773568247512,-152.0,0.00036235,8]
[408400944,1773568247521,-151.0,0.00036256,7]
[408400945,1773568247531,-2000.0,0.000364,2]
[408400946,1773568247542,-4417.06,0.000364,2]
[408400947,1773568247552,-8380.5344261,0.00036454,5]
[408400948,1773568247562,-246.1232,0.000365,30]
[408400949,1773568247572,-2696.0,0.00036533,5]
[408400950,1773568247582,-2155.0,0.00036533,5]
[408400951,1773568247591,-246.1232,0.000367,30]
[408400952,1773568247601,-820.4106,0.00036888,7]
[408400953,1773568247611,-246.1232,0.000369,30]
[408400954,1773568247620,-1404.44,0.000369,14]
[408400955,1773568247630,-50000.0,0.00037,120]
[408400956,1773568247639,-469.87233333,0.00037,120]
[408400957,1773568247649,-165.15425659,0.00037,30]
[408400958,1773568247659,-246.1232,0.000371,30]
[408400959,1773568247669,-4909.54393644,0.00037149,58]
[408400960,1773568247678,-1375.84,0.000372,30]
[408400961,1773568247689,-246.1232,0.000373,30]
[408400962,1773568247698,-500.0,0.0003737,2]
[408400963,1773568247708,-246.1232,0.000375,30]
[408400964,1773568247718,-152.0,0.00037526,9]
[408400965,1773568247727,-151.0,0.00037587,7]
[408400966,1773568247737,-246.1232,0.000377,30]
[408400967,1773568247747,-150.80042107,0.00037852,2]
[408400968,1773568247757,-246.1232,0.000379,30]
[408400969,1773568247766,-1404.44,0.000379,14]
[408400970,1773568247776,-296.57517427,0.000381,33]
[408400971,1773568247786,-246.1232,0.000381,30]
[408400972,1773568247796,-2000.0,0.000381,7]
[408400973,1773568247805,-246.1232,0.000383,30]
[408400974,1773568247815,-500.0,0.00038463,2]
[408400975,1773568247824,-500.0,0.00038463,2]
[408400976,1773568247834,-500.0,0.00038463,2]
[408400977,1773568247843,-500.0,0.00038463,2]
[408400978,1773568247853,-500.0,0.00038463,2]
[408400979,1773568247862,-500.0,0.00038463,2]
[408400980,1773568247872,-500.0,0.00038463,2]
[408400981,1773568247882,-500.0,0.00038463,2]
[408400982,1773568247895,-500.0,0.00038463,2]
[408400983,1773568247906,-500.0,0.00038463,2]
[408400984,1773568247915,-500.0,0.00038463,2]
[408400985,1773568247925,-500.0,0.00038463,2]
[408400986,1773568247935,-500.0,0.00038463,2]
[408400987,1773568247945,-500.0,0.00038463,2]
[408400988,1773568247955,-500.0,0.00038463,2]
[408400989,1773568247964,-500.0,0.00038463,2]
[408400990,1773568247974,-500.0,0.00038463,2]
[408400991,1773568247983,-500.0,0.00038463,2]
[408400992,1773568247993,-500.0,0.00038463,2]
[408400993,1773568248002,-500.0,0.00038463,2]
[408400994,1773568248012,-500.0,0.00038463,2]
[408400995,1773568248022,-500.0,0.00038463,2]
[408400996,1773568248032,-500.0,0.00038463,2]
[408400997,1773568248041,-500.0,0.00038463,2]
[408400998,1773568248050,-500.0,0.00038463,2]
[408400999,1773568248060,-500.0,0.00038463,2]
[408401000,1773568248069,-500.0,0.00038463,2]
[408401001,1773568248079,-500.0,0.00038463,2]
[408401002,1773568248088,-500.0,0.00038463,2]
[408401003,1773568248097,-500.0,0.00038463,2]
[408401004,1773568248107,-560.0,0.00038463,2]
[408401005,1773568248116,-500.0,0.00038463,2]
[408401006,1773568248125,-500.0,0.00038463,2]
[408401007,1773568248135,-500.0,0.00038463,2]
[408401008,1773568248145,-500.0,0.00038463,2]
[408401009,1773568248154,-500.0,0.00038463,2]
[408401010,1773568248164,-500.0,0.00038463,2]
[408401011,1773568248173,-500.0,0.00038463,2]
[408401012,1773568248183,-500.0,0.00038463,2]
[408401013,1773568248192,-500.0,0.00038463,2]
[408401014,1773568248202,-500.0,0.00038463,2]
[408401015,1773568248211,-500.0,0.00038463,2]
[408401016,1773568248221,-500.0,0.00038463,2]
[408401017,1773568248230,-500.0,0.00038463,2]
[408401018,1773568248240,-500.0,0.00038463,2]
[408401019,1773568248250,-500.0,0.00038463,2]
[408401020,1773568248259,-500.0,0.00038463,2]
[408401021,1773568248272,-500.0,0.00038463,2]
[408401022,1773568248282,-246.1232,0.000385,30]
[408401023,1773568248291,-500.0,0.000387,120]
[408401024,1773568248301,-4417.06,0.000387,30]
[408401025,1773568248312,-246.1232,0.000387,30]
[408401026,1773568248321,-1058.45204396,0.0003878,2]
[408401027,1773568248330,-152.0,0.00038816,10]
[408401028,1773568248340,-246.1232,0.000389,30]
[408401029,1773568248349,-1206.8992,0.0003895,2]
[408401030,1773568248359,-10000.0,0.0003895,2]
[408401031,1773568248368,-700.0,0.00039082,14]
[408401032,1773568248378,-1700.0,0.00039082,14]
[408401033,1773568248387,-2600.0,0.00039082,14]
[408401034,1773568248397,-246.1232,0.000391,30]
[408401035,1773568248407,-246.1232,0.000393,30]
[408401036,1773568248416,-300.0,0.00039313,10]
[408401037,1773568248426,-25000.0,0.00039314,15]
[408401038,1773568248435,-4112.5188394,0.00039315,15]
[408401039,1773568248445,-300.0,0.00039322,10]
[408401040,1773568248454,-25000.0,0.00039323,15]
[408401041,1773568248466,-155.372088,0.00039323,30]
[408401042,1773568248477,-25000.0,0.00039332,15]
[408401043,1773568248487,-25000.0,0.00039345,15]
[408401044,1773568248497,-1404.44,0.000394,14]
[408401045,1773568248507,-2022.0,0.000395,7]
[408401046,1773568248518,-518.0,0.000395,22]
[408401047,1773568248528,-1527.99559368,0.00039673,2]
[408401048,1773568248540,-246.1232,0.000397,30]
[408401049,1773568248550,-512.75059119,0.00039726,120]
[408401050,1773568248561,-1000.0,0.00039726,120]
[408401051,1773568248571,-246.1232,0.000399,30]
[408401052,1773568248581,-700.0,0.00039904,14]